[Event "Titled Tuesday Blitz October 5 2021"]
[White "Abdusattorov, Nodirbek"]
[Black "Dushyant Sharma"]
[WhiteFideId "14204118"]
[BlackFideId "25065130"]
[WhiteElo "2690"]
[BlackElo "1990"]
[Result "1-0"]
[Round "01"]
[TimeControl "180+1"]
[Date "2021.10.05"]
[WhiteClock "0:00:43"]
[BlackClock "0:00:21"]

1. Nf3 {[%clk 0:02:59]}  d5 {[%clk 0:02:59]} 2. g3 {[%clk 0:02:59]}  e6 {[%clk 0:02:59]} 3. Bg2 {[%clk 0:02:59]}  Be7 {[%clk 0:02:59]} 4. c4 {[%clk 0:02:58]}  Nf6 {[%clk 0:03:00]} 5. O-O {[%clk 0:02:59]}  O-O {[%clk 0:02:58]} 6. b3 {[%clk 0:02:59]}  c5 {[%clk 0:02:58]} 7. Bb2 {[%clk 0:02:59]}  Nc6 {[%clk 0:02:57]} 8. e3 {[%clk 0:02:57]}  b6 {[%clk 0:02:56]} 9. cxd5 {[%clk 0:02:54]}  exd5 {[%clk 0:02:57]} 10. d4 {[%clk 0:02:54]}  Bb7 {[%clk 0:02:54]} 11. Nc3 {[%clk 0:02:53]}  Rc8 {[%clk 0:02:53]} 12. Rc1 {[%clk 0:02:50]}  Nb4 {[%clk 0:02:48]} 13. a3 {[%clk 0:02:44]}  Nc6 {[%clk 0:02:42]} 14. dxc5 {[%clk 0:02:23]}  bxc5 {[%clk 0:02:43]} 15. Ne2 {[%clk 0:02:23]}  Qb6 {[%clk 0:02:31]} 16. Nf4 {[%clk 0:02:20]}  Na5 {[%clk 0:02:17]} 17. b4 {[%clk 0:02:02]}  cxb4 {[%clk 0:01:57]} 18. Rxc8 {[%clk 0:02:03]}  Rxc8 {[%clk 0:01:56]} 19. Bd4 {[%clk 0:01:57]}  Qd8 {[%clk 0:01:45]} 20. axb4 {[%clk 0:01:54]}  Bxb4 {[%clk 0:01:46]} 21. Bxf6 {[%clk 0:01:28]}  Qxf6 {[%clk 0:01:34]} 22. Nxd5 {[%clk 0:01:29]}  Bxd5 {[%clk 0:01:25]} 23. Qxd5 {[%clk 0:01:30]}  Rd8 {[%clk 0:01:22]} 24. Qb5 {[%clk 0:01:26]}  Qb6 {[%clk 0:01:19]} 25. Qa4 {[%clk 0:01:15]}  Bc5 {[%clk 0:01:15]} 26. Ng5 {[%clk 0:01:10]}  Bxe3 {[%clk 0:01:05]} 27. Nxf7 {[%clk 0:01:01]}  Kxf7 {[%clk 0:01:02]} 28. fxe3+ {[%clk 0:00:52]}  Kg8 {[%clk 0:01:03]} 29. Bd5+ {[%clk 0:00:46]}  Kh8 {[%clk 0:01:00]} 30. Qf4 {[%clk 0:00:46]}  Qc5 {[%clk 0:00:49]} 31. Be4 {[%clk 0:00:45]}  Nc4 {[%clk 0:00:47]} 32. Qh4 {[%clk 0:00:44]}  Qxe3+ {[%clk 0:00:21]} 33. Kh1 {[%clk 0:00:43]} 1-0


[Site "https://www.chess.com"]

[Event "Titled Tuesday Blitz October 5 2021"]
[White "Begmuratov, Khumoyun"]
[Black "Terletsky, Oleg"]
[WhiteFideId "14210207"]
[BlackFideId "14116774"]
[WhiteElo "1948"]
[BlackElo "2055"]
[Result "1-0"]
[Round "01"]
[TimeControl "180+1"]
[Date "2021.10.05"]
[WhiteClock "0:01:03"]
[BlackClock "0:00:02"]

1. e4 {[%clk 0:02:51]}  e5 {[%clk 0:02:59]} 2. Nf3 {[%clk 0:02:49]}  Nc6 {[%clk 0:02:59]} 3. d4 {[%clk 0:02:47]}  exd4 {[%clk 0:03:00]} 4. Nxd4 {[%clk 0:02:47]}  Nf6 {[%clk 0:02:59]} 5. Nc3 {[%clk 0:02:47]}  Bb4 {[%clk 0:02:58]} 6. Nxc6 {[%clk 0:02:46]}  bxc6 {[%clk 0:02:59]} 7. Bd3 {[%clk 0:02:46]}  O-O {[%clk 0:02:59]} 8. O-O {[%clk 0:02:46]}  d5 {[%clk 0:03:00]} 9. exd5 {[%clk 0:02:45]}  cxd5 {[%clk 0:03:01]} 10. Qf3 {[%clk 0:02:46]}  c6 {[%clk 0:02:59]} 11. h3 {[%clk 0:02:46]}  Bd6 {[%clk 0:02:56]} 12. Bf4 {[%clk 0:02:43]}  Rb8 {[%clk 0:02:55]} 13. b3 {[%clk 0:02:43]}  Qc7 {[%clk 0:02:37]} 14. Ne2 {[%clk 0:02:39]}  Re8 {[%clk 0:02:35]} 15. Rfe1 {[%clk 0:02:31]}  Ne4 {[%clk 0:02:20]} 16. Bxd6 {[%clk 0:02:18]}  Qxd6 {[%clk 0:02:17]} 17. Ng3 {[%clk 0:02:17]}  f5 {[%clk 0:01:51]} 18. c4 {[%clk 0:01:54]}  g6 {[%clk 0:01:41]} 19. cxd5 {[%clk 0:01:53]}  cxd5 {[%clk 0:01:42]} 20. Rad1 {[%clk 0:01:49]}  Bb7 {[%clk 0:00:56]} 21. Ne2 {[%clk 0:01:37]}  Qb4 {[%clk 0:00:50]} 22. Qf4 {[%clk 0:01:31]}  Rbd8 {[%clk 0:00:40]} 23. Kh2 {[%clk 0:01:25]}  Qd6 {[%clk 0:00:38]} 24. Qxd6 {[%clk 0:01:16]}  Nxd6 {[%clk 0:00:26]} 25. Nd4 {[%clk 0:01:15]}  Ne4 {[%clk 0:00:24]} 26. Bb5 {[%clk 0:01:11]}  Rf8 {[%clk 0:00:08]} 27. Ne6 {[%clk 0:01:08]}  Nxf2 {[%clk 0:00:08]} 28. Rd4 {[%clk 0:01:07]}  Ne4 {[%clk 0:00:07]} 29. Nxd8 {[%clk 0:01:05]}  Rxd8 {[%clk 0:00:08]} 30. Rc1 {[%clk 0:01:05]}  a6 {[%clk 0:00:07]} 31. Rc7 {[%clk 0:01:04]}  axb5 {[%clk 0:00:04]} 32. Rxb7 {[%clk 0:01:04]}  Rc8 {[%clk 0:00:03]} 33. Rxb5 {[%clk 0:01:03]}  Rc2 {[%clk 0:00:02]} 34. Rbxd5 {[%clk 0:01:03]}  Kg7 {[%clk 0:00:02]} 35. b4 {[%clk 0:01:03]}  Kh6 {[%clk 0:00:02]} 36. b5 {[%clk 0:01:03]}  Kg5 {[%clk 0:00:02]} 37. Rxe4 {[%clk 0:01:03]} 1-0


[Site "https://www.chess.com"]

[Event "Titled Tuesday Blitz October 5 2021"]
[White "Belenkaya, Dina"]
[Black "Maksimovic, Bojan"]
[WhiteFideId "24142654"]
[BlackFideId "14408120"]
[WhiteElo "2247"]
[BlackElo "2439"]
[Result "0-1"]
[Round "01"]
[TimeControl "180+1"]
[Date "2021.10.05"]
[WhiteClock "0:00:11"]
[BlackClock "0:00:22"]

1. Nf3 {[%clk 0:02:58]}  d5 {[%clk 0:02:59]} 2. g3 {[%clk 0:02:58]}  c5 {[%clk 0:02:59]} 3. Bg2 {[%clk 0:02:56]}  Nc6 {[%clk 0:02:59]} 4. O-O {[%clk 0:02:52]}  g6 {[%clk 0:02:59]} 5. d3 {[%clk 0:02:49]}  Bg7 {[%clk 0:02:59]} 6. Nbd2 {[%clk 0:02:49]}  Nf6 {[%clk 0:02:59]} 7. c3 {[%clk 0:02:48]}  O-O {[%clk 0:02:59]} 8. e4 {[%clk 0:02:48]}  e5 {[%clk 0:02:58]} 9. Qc2 {[%clk 0:02:41]}  h6 {[%clk 0:02:59]} 10. Rd1 {[%clk 0:02:38]}  Re8 {[%clk 0:02:58]} 11. Nf1 {[%clk 0:02:36]}  Be6 {[%clk 0:02:53]} 12. b3 {[%clk 0:02:16]}  Qd7 {[%clk 0:02:51]} 13. Ba3 {[%clk 0:02:15]}  b6 {[%clk 0:02:51]} 14. Ne3 {[%clk 0:02:14]}  Rad8 {[%clk 0:02:42]} 15. Rd2 {[%clk 0:01:46]}  d4 {[%clk 0:02:41]} 16. cxd4 {[%clk 0:01:38]}  exd4 {[%clk 0:01:41]} 17. Nc4 {[%clk 0:01:34]}  Bh3 {[%clk 0:01:41]} 18. Nh4 {[%clk 0:01:20]}  Bxg2 {[%clk 0:01:40]} 19. Kxg2 {[%clk 0:01:16]}  Nh7 {[%clk 0:01:09]} 20. Re2 {[%clk 0:00:50]}  Ng5 {[%clk 0:01:07]} 21. f4 {[%clk 0:00:50]}  Qh3+ {[%clk 0:01:05]} 22. Kh1 {[%clk 0:00:48]}  Nxe4 {[%clk 0:00:33]} 23. Rxe4 {[%clk 0:00:44]}  Rxe4 {[%clk 0:00:33]} 24. dxe4 {[%clk 0:00:45]}  d3 {[%clk 0:00:33]} 25. Qd1 {[%clk 0:00:33]}  Bxa1 {[%clk 0:00:33]} 26. Qxa1 {[%clk 0:00:34]}  Qg4 {[%clk 0:00:33]} 27. Nd2 {[%clk 0:00:32]}  Qe2 {[%clk 0:00:32]} 28. Nhf3 {[%clk 0:00:31]}  Nd4 {[%clk 0:00:30]} 29. Nxd4 {[%clk 0:00:25]}  Qxd2 {[%clk 0:00:27]} 30. Nc6 {[%clk 0:00:25]}  Re8 {[%clk 0:00:21]} 31. Qf6 {[%clk 0:00:18]}  Qe1+ {[%clk 0:00:21]} 32. Kg2 {[%clk 0:00:19]}  Qxe4+ {[%clk 0:00:22]} 33. Kg1 {[%clk 0:00:11]}  d2 {[%clk 0:00:22]} 0-1


[Site "https://www.chess.com"]

[Event "Titled Tuesday Blitz October 5 2021"]
[White "Bilych, Olexiy"]
[Black "Popadic, Dragan"]
[WhiteFideId "14156504"]
[BlackFideId "913650"]
[WhiteElo "2248"]
[BlackElo "2207"]
[Result "1-0"]
[Round "01"]
[TimeControl "180+1"]
[Date "2021.10.05"]
[WhiteClock "0:00:14"]
[BlackClock "0:00:12"]

1. d4 {[%clk 0:02:58]}  Nf6 {[%clk 0:02:59]} 2. c4 {[%clk 0:02:57]}  g6 {[%clk 0:02:59]} 3. Nc3 {[%clk 0:02:57]}  Bg7 {[%clk 0:02:58]} 4. e4 {[%clk 0:02:57]}  d6 {[%clk 0:02:59]} 5. Be2 {[%clk 0:02:57]}  O-O {[%clk 0:02:58]} 6. Be3 {[%clk 0:02:58]}  e5 {[%clk 0:02:56]} 7. d5 {[%clk 0:02:58]}  a5 {[%clk 0:02:55]} 8. g4 {[%clk 0:02:58]}  Na6 {[%clk 0:02:55]} 9. h4 {[%clk 0:02:54]}  Nd7 {[%clk 0:02:55]} 10. h5 {[%clk 0:02:53]}  Ndc5 {[%clk 0:02:54]} 11. Qd2 {[%clk 0:02:44]}  Re8 {[%clk 0:02:53]} 12. hxg6 {[%clk 0:02:37]}  hxg6 {[%clk 0:02:52]} 13. Nf3 {[%clk 0:02:07]}  Bxg4 {[%clk 0:02:45]} 14. O-O-O {[%clk 0:02:07]}  Nb4 {[%clk 0:02:43]} 15. Rdg1 {[%clk 0:02:03]}  Bxf3 {[%clk 0:02:41]} 16. Bxf3 {[%clk 0:02:03]}  Ncd3+ {[%clk 0:02:40]} 17. Kb1 {[%clk 0:02:04]}  Nf4 {[%clk 0:02:41]} 18. Ne2 {[%clk 0:01:46]}  Nbd3 {[%clk 0:02:28]} 19. Nxf4 {[%clk 0:00:57]}  exf4 {[%clk 0:02:22]} 20. Bxf4 {[%clk 0:00:51]}  Nxf4 {[%clk 0:01:57]} 21. Qxf4 {[%clk 0:00:51]}  c6 {[%clk 0:01:57]} 22. Bg4 {[%clk 0:00:39]}  cxd5 {[%clk 0:01:53]} 23. cxd5 {[%clk 0:00:40]}  Qb6 {[%clk 0:01:50]} 24. Qd2 {[%clk 0:00:34]}  Rxe4 {[%clk 0:01:48]} 25. Bf5 {[%clk 0:00:34]}  Rb4 {[%clk 0:01:46]} 26. b3 {[%clk 0:00:29]}  Rd4 {[%clk 0:01:32]} 27. Qc1 {[%clk 0:00:20]}  Rxd5 {[%clk 0:01:30]} 28. Rxg6 {[%clk 0:00:20]}  fxg6 {[%clk 0:01:18]} 29. Be6+ {[%clk 0:00:20]}  Kf8 {[%clk 0:01:15]} 30. Qf4+ {[%clk 0:00:20]}  Rf5 {[%clk 0:01:02]} 31. Bxf5 {[%clk 0:00:20]}  Qd4 {[%clk 0:00:58]} 32. Be4+ {[%clk 0:00:17]}  Ke7 {[%clk 0:00:52]} 33. Qg5+ {[%clk 0:00:17]}  Kd7 {[%clk 0:00:48]} 34. Qg4+ {[%clk 0:00:15]}  Kc7 {[%clk 0:00:41]} 35. Rc1+ {[%clk 0:00:15]}  Kb6 {[%clk 0:00:41]} 36. Kc2 {[%clk 0:00:15]}  Re8 {[%clk 0:00:36]} 37. f3 {[%clk 0:00:12]}  d5 {[%clk 0:00:31]} 38. Qxg6+ {[%clk 0:00:12]}  Bf6 {[%clk 0:00:30]} 39. Qxe8 {[%clk 0:00:13]}  dxe4 {[%clk 0:00:24]} 40. Qxe4 {[%clk 0:00:12]}  Qb2+ {[%clk 0:00:21]} 41. Kd1 {[%clk 0:00:13]}  Qxa2 {[%clk 0:00:19]} 42. Qe6+ {[%clk 0:00:13]}  Ka7 {[%clk 0:00:19]} 43. Qxf6 {[%clk 0:00:14]}  Qxb3+ {[%clk 0:00:19]} 44. Rc2 {[%clk 0:00:14]}  Qd3+ {[%clk 0:00:19]} 45. Rd2 {[%clk 0:00:14]}  Qf1+ {[%clk 0:00:18]} 46. Kc2 {[%clk 0:00:15]}  a4 {[%clk 0:00:16]} 47. Qc3 {[%clk 0:00:15]}  Qb5 {[%clk 0:00:13]} 48. Qd4+ {[%clk 0:00:14]}  Ka6 {[%clk 0:00:12]} 49. Qd3 {[%clk 0:00:14]} 1-0


[Site "https://www.chess.com"]

[Event "Titled Tuesday Blitz October 5 2021"]
[White "Bordi, Kevin"]
[Black "Pasti, Aron"]
[WhiteFideId "621862"]
[BlackFideId "785857"]
[WhiteElo "2815"]
[BlackElo "2080"]
[Result "1-0"]
[Round "01"]
[TimeControl "180+1"]
[Date "2021.10.05"]
[WhiteClock "0:00:29"]
[BlackClock "0:00:05"]

1. e4 {[%clk 0:02:59]}  c5 {[%clk 0:02:51]} 2. Nf3 {[%clk 0:02:59]}  e6 {[%clk 0:02:47]} 3. b4 {[%clk 0:02:57]}  cxb4 {[%clk 0:02:46]} 4. d4 {[%clk 0:02:58]}  d5 {[%clk 0:02:44]} 5. e5 {[%clk 0:02:58]}  Ne7 {[%clk 0:02:42]} 6. Bd3 {[%clk 0:02:53]}  Ng6 {[%clk 0:02:42]} 7. h4 {[%clk 0:02:52]}  Be7 {[%clk 0:02:39]} 8. h5 {[%clk 0:02:48]}  Nf8 {[%clk 0:02:39]} 9. a3 {[%clk 0:02:43]}  Nc6 {[%clk 0:02:38]} 10. Qd2 {[%clk 0:02:32]}  h6 {[%clk 0:02:35]} 11. Qf4 {[%clk 0:02:31]}  Nh7 {[%clk 0:02:25]} 12. Qg4 {[%clk 0:02:22]}  Ng5 {[%clk 0:02:09]} 13. Nxg5 {[%clk 0:02:22]}  hxg5 {[%clk 0:02:10]} 14. Nd2 {[%clk 0:02:17]}  Bd7 {[%clk 0:02:00]} 15. Nf3 {[%clk 0:01:57]}  Qb6 {[%clk 0:01:53]} 16. O-O {[%clk 0:01:47]}  O-O-O {[%clk 0:01:50]} 17. axb4 {[%clk 0:01:38]}  f5 {[%clk 0:01:47]} 18. exf6 {[%clk 0:01:33]}  gxf6 {[%clk 0:01:47]} 19. c3 {[%clk 0:01:32]}  f5 {[%clk 0:01:27]} 20. Qg3 {[%clk 0:01:32]}  Rxh5 {[%clk 0:01:27]} 21. Nxg5 {[%clk 0:01:15]}  Bxg5 {[%clk 0:00:58]} 22. Bxg5 {[%clk 0:01:16]}  Rdh8 {[%clk 0:00:54]} 23. f4 {[%clk 0:01:16]}  Nxd4 {[%clk 0:00:51]} 24. Qe3 {[%clk 0:01:15]}  Nf3+ {[%clk 0:00:24]} 25. Kf2 {[%clk 0:01:14]}  Qxe3+ {[%clk 0:00:21]} 26. Kxe3 {[%clk 0:01:14]}  Nxg5 {[%clk 0:00:21]} 27. fxg5 {[%clk 0:01:15]}  Kb8 {[%clk 0:00:19]} 28. g4 {[%clk 0:01:03]}  Rh3+ {[%clk 0:00:17]} 29. Kd4 {[%clk 0:01:01]}  R8h4 {[%clk 0:00:17]} 30. Rg1 {[%clk 0:00:59]}  Rxg4+ {[%clk 0:00:16]} 31. Rxg4 {[%clk 0:00:59]}  fxg4 {[%clk 0:00:17]} 32. Re1 {[%clk 0:00:39]}  Rh5 {[%clk 0:00:16]} 33. g6 {[%clk 0:00:37]}  g3 {[%clk 0:00:12]} 34. Rg1 {[%clk 0:00:33]}  Rg5 {[%clk 0:00:12]} 35. Ke3 {[%clk 0:00:33]}  e5 {[%clk 0:00:12]} 36. Bc2 {[%clk 0:00:32]}  e4 {[%clk 0:00:12]} 37. c4 {[%clk 0:00:32]}  Rxg6 {[%clk 0:00:08]} 38. cxd5 {[%clk 0:00:32]}  Bf5 {[%clk 0:00:07]} 39. Kf4 {[%clk 0:00:32]}  Rf6 {[%clk 0:00:06]} 40. Ke5 {[%clk 0:00:31]}  Rf8 {[%clk 0:00:06]} 41. Rxg3 {[%clk 0:00:31]}  e3 {[%clk 0:00:05]} 42. Bxf5 {[%clk 0:00:29]} 1-0


[Site "https://www.chess.com"]

[Event "Titled Tuesday Blitz October 5 2021"]
[White "Boyer, Mahel"]
[Black "Okike, David"]
[WhiteFideId "45102422"]
[BlackFideId "8500134"]
[WhiteElo "2328"]
[BlackElo "2232"]
[Result "1-0"]
[Round "01"]
[TimeControl "180+1"]
[Date "2021.10.05"]
[WhiteClock "0:00:52"]
[BlackClock "0:01:39"]

1. e4 {[%clk 0:02:49]}  c5 {[%clk 0:02:58]} 2. d3 {[%clk 0:02:48]}  g6 {[%clk 0:02:56]} 3. g3 {[%clk 0:02:49]}  Bg7 {[%clk 0:02:56]} 4. Bg2 {[%clk 0:02:50]}  d6 {[%clk 0:02:56]} 5. f4 {[%clk 0:02:50]}  Nc6 {[%clk 0:02:56]} 6. Nf3 {[%clk 0:02:49]}  e6 {[%clk 0:02:56]} 7. O-O {[%clk 0:02:49]}  Nge7 {[%clk 0:02:57]} 8. c3 {[%clk 0:02:49]}  O-O {[%clk 0:02:55]} 9. Be3 {[%clk 0:02:50]}  Rb8 {[%clk 0:02:54]} 10. d4 {[%clk 0:02:43]}  b6 {[%clk 0:02:53]} 11. Re1 {[%clk 0:02:32]}  Na5 {[%clk 0:02:52]} 12. Bf2 {[%clk 0:02:31]}  Qc7 {[%clk 0:02:49]} 13. Na3 {[%clk 0:02:21]}  Ba6 {[%clk 0:02:47]} 14. Rc1 {[%clk 0:02:19]}  Nc4 {[%clk 0:02:46]} 15. Nxc4 {[%clk 0:02:16]}  Bxc4 {[%clk 0:02:46]} 16. b3 {[%clk 0:02:17]}  Ba6 {[%clk 0:02:45]} 17. c4 {[%clk 0:02:18]}  Rfd8 {[%clk 0:02:43]} 18. d5 {[%clk 0:02:16]}  exd5 {[%clk 0:02:43]} 19. cxd5 {[%clk 0:02:16]}  Re8 {[%clk 0:02:38]} 20. e5 {[%clk 0:02:10]}  Bb7 {[%clk 0:02:37]} 21. Ng5 {[%clk 0:02:04]}  Rbd8 {[%clk 0:02:34]} 22. e6 {[%clk 0:01:56]}  f5 {[%clk 0:02:20]} 23. Nf7 {[%clk 0:01:43]}  Rc8 {[%clk 0:02:18]} 24. Qd3 {[%clk 0:01:39]}  a6 {[%clk 0:02:17]} 25. a4 {[%clk 0:01:39]}  Rb8 {[%clk 0:02:16]} 26. Rcd1 {[%clk 0:01:36]}  Bc8 {[%clk 0:02:14]} 27. g4 {[%clk 0:01:26]}  fxg4 {[%clk 0:02:09]} 28. h3 {[%clk 0:01:21]}  g3 {[%clk 0:02:07]} 29. Qxg3 {[%clk 0:01:15]}  Nf5 {[%clk 0:02:07]} 30. Qg5 {[%clk 0:01:14]}  Bf8 {[%clk 0:01:58]} 31. Be4 {[%clk 0:01:13]}  Be7 {[%clk 0:01:57]} 32. Qg4 {[%clk 0:01:07]}  Ng7 {[%clk 0:01:54]} 33. Bxg6 {[%clk 0:01:02]}  hxg6 {[%clk 0:01:52]} 34. Qxg6 {[%clk 0:01:03]}  Rf8 {[%clk 0:01:48]} 35. Rd3 {[%clk 0:00:53]}  Bd8 {[%clk 0:01:47]} 36. Rg3 {[%clk 0:00:50]}  Rxf7 {[%clk 0:01:43]} 37. exf7+ {[%clk 0:00:51]}  Qxf7 {[%clk 0:01:42]} 38. Re8+ {[%clk 0:00:51]}  Qxe8 {[%clk 0:01:39]} 39. Qxg7# {[%clk 0:00:52]} 1-0


[Site "https://www.chess.com"]

[Event "Titled Tuesday Blitz October 5 2021"]
[White "Bures, Vit"]
[Black "Cunha, Lucas Aguiar"]
[WhiteFideId "309052"]
[BlackFideId "2125404"]
[WhiteElo "2132"]
[BlackElo "2361"]
[Result "1-0"]
[Round "01"]
[TimeControl "180+1"]
[Date "2021.10.05"]
[WhiteClock "0:00:39"]
[BlackClock "0:01:05"]

1. d4 {[%clk 0:03:00]}  Nf6 {[%clk 0:02:58]} 2. c4 {[%clk 0:03:00]}  e6 {[%clk 0:02:58]} 3. Nc3 {[%clk 0:02:59]}  Bb4 {[%clk 0:02:58]} 4. e3 {[%clk 0:02:59]}  c5 {[%clk 0:02:59]} 5. Ne2 {[%clk 0:02:58]}  b6 {[%clk 0:02:58]} 6. a3 {[%clk 0:02:57]}  Ba5 {[%clk 0:02:58]} 7. g3 {[%clk 0:02:48]}  Bb7 {[%clk 0:02:58]} 8. d5 {[%clk 0:02:48]}  exd5 {[%clk 0:02:57]} 9. Bg2 {[%clk 0:02:48]}  Nc6 {[%clk 0:02:22]} 10. cxd5 {[%clk 0:02:43]}  Ne5 {[%clk 0:02:18]} 11. O-O {[%clk 0:02:43]}  Ba6 {[%clk 0:02:15]} 12. Bd2 {[%clk 0:01:46]}  O-O {[%clk 0:02:12]} 13. b4 {[%clk 0:01:36]}  Bxb4 {[%clk 0:01:43]} 14. axb4 {[%clk 0:01:37]}  Bxe2 {[%clk 0:01:44]} 15. Nxe2 {[%clk 0:01:35]}  c4 {[%clk 0:01:37]} 16. Bc3 {[%clk 0:01:30]}  Re8 {[%clk 0:01:33]} 17. Bxe5 {[%clk 0:01:24]}  Rxe5 {[%clk 0:01:34]} 18. Qd4 {[%clk 0:01:23]}  d6 {[%clk 0:01:30]} 19. Qxc4 {[%clk 0:01:21]}  Rc8 {[%clk 0:01:27]} 20. Qd4 {[%clk 0:01:17]}  Rc2 {[%clk 0:01:19]} 21. Nf4 {[%clk 0:01:17]}  Re7 {[%clk 0:01:15]} 22. Rfc1 {[%clk 0:01:13]}  Qc8 {[%clk 0:01:13]} 23. Rxc2 {[%clk 0:01:07]}  Qxc2 {[%clk 0:01:13]} 24. h3 {[%clk 0:00:55]}  h5 {[%clk 0:01:10]} 25. Qd1 {[%clk 0:00:45]}  Qb2 {[%clk 0:01:09]} 26. Rb1 {[%clk 0:00:43]}  Qa2 {[%clk 0:01:08]} 27. Qb3 {[%clk 0:00:40]}  Qd2 {[%clk 0:01:05]} 28. Rd1 {[%clk 0:00:39]} 1-0


[Site "https://www.chess.com"]

[Event "Titled Tuesday Blitz October 5 2021"]
[White "Cardoso Cardoso, Jose Gabriel"]
[Black "Havanecz, Bianka"]
[WhiteFideId "4430492"]
[BlackFideId "704814"]
[WhiteElo "2343"]
[BlackElo "2431"]
[Result "1-0"]
[Round "01"]
[TimeControl "180+1"]
[Date "2021.10.05"]
[WhiteClock "0:01:37"]
[BlackClock "0:00:15"]

1. d4 {[%clk 0:03:00]}  d5 {[%clk 0:02:59]} 2. Nc3 {[%clk 0:02:57]}  Nf6 {[%clk 0:02:44]} 3. Bf4 {[%clk 0:02:57]}  Bf5 {[%clk 0:02:43]} 4. f3 {[%clk 0:02:56]}  e6 {[%clk 0:02:41]} 5. g4 {[%clk 0:02:56]}  Bg6 {[%clk 0:02:40]} 6. h4 {[%clk 0:02:56]}  h5 {[%clk 0:02:32]} 7. g5 {[%clk 0:02:56]}  Nfd7 {[%clk 0:02:30]} 8. e3 {[%clk 0:02:56]}  a6 {[%clk 0:02:21]} 9. Bd3 {[%clk 0:02:56]}  Bxd3 {[%clk 0:02:21]} 10. Qxd3 {[%clk 0:02:57]}  g6 {[%clk 0:02:14]} 11. e4 {[%clk 0:02:54]}  c6 {[%clk 0:02:08]} 12. Nge2 {[%clk 0:02:52]}  Nb6 {[%clk 0:01:53]} 13. O-O-O {[%clk 0:02:48]}  Bg7 {[%clk 0:01:51]} 14. Be5 {[%clk 0:02:43]}  O-O {[%clk 0:01:49]} 15. f4 {[%clk 0:02:38]}  Nc4 {[%clk 0:01:44]} 16. Bxg7 {[%clk 0:02:37]}  Kxg7 {[%clk 0:01:45]} 17. f5 {[%clk 0:02:36]}  Qb6 {[%clk 0:01:27]} 18. b3 {[%clk 0:02:35]}  Nd6 {[%clk 0:01:23]} 19. f6+ {[%clk 0:02:29]}  Kh7 {[%clk 0:01:16]} 20. Nf4 {[%clk 0:02:29]}  dxe4 {[%clk 0:01:11]} 21. Nxe4 {[%clk 0:02:29]}  Nf5 {[%clk 0:01:03]} 22. Ng3 {[%clk 0:01:49]}  Qb5 {[%clk 0:00:38]} 23. Nxf5 {[%clk 0:01:42]}  Qxf5 {[%clk 0:00:34]} 24. Qxf5 {[%clk 0:01:41]}  exf5 {[%clk 0:00:30]} 25. Rhe1 {[%clk 0:01:41]}  Nd7 {[%clk 0:00:25]} 26. Re7 {[%clk 0:01:41]}  Nb6 {[%clk 0:00:19]} 27. Ne6 {[%clk 0:01:38]}  Rfe8 {[%clk 0:00:15]} 28. Rxf7+ {[%clk 0:01:38]}  Kg8 {[%clk 0:00:14]} 29. Rg7+ {[%clk 0:01:37]}  Kh8 {[%clk 0:00:15]} 30. Nf4 {[%clk 0:01:37]} 1-0


[Site "https://www.chess.com"]

[Event "Titled Tuesday Blitz October 5 2021"]
[White "Czerw, Dawid"]
[Black "Tabatabaei, M. Amin"]
[WhiteFideId "1145746"]
[BlackFideId "12521213"]
[WhiteElo "2075"]
[BlackElo "2555"]
[Result "0-1"]
[Round "01"]
[TimeControl "180+1"]
[Date "2021.10.05"]
[WhiteClock "0:00:07"]
[BlackClock "0:01:13"]

1. d4 {[%clk 0:02:57]}  c6 {[%clk 0:03:00]} 2. c4 {[%clk 0:02:56]}  d5 {[%clk 0:02:28]} 3. Nf3 {[%clk 0:02:54]}  e6 {[%clk 0:02:28]} 4. Qb3 {[%clk 0:02:42]}  f5 {[%clk 0:02:25]} 5. g3 {[%clk 0:02:36]}  Nf6 {[%clk 0:02:25]} 6. Bg2 {[%clk 0:02:35]}  Bd6 {[%clk 0:02:25]} 7. O-O {[%clk 0:02:35]}  O-O {[%clk 0:02:26]} 8. Nc3 {[%clk 0:02:30]}  Ne4 {[%clk 0:02:26]} 9. Rb1 {[%clk 0:02:19]}  Nd7 {[%clk 0:02:24]} 10. Qc2 {[%clk 0:02:17]}  b6 {[%clk 0:02:22]} 11. b4 {[%clk 0:02:13]}  Bb7 {[%clk 0:02:20]} 12. Bf4 {[%clk 0:02:07]}  Bxf4 {[%clk 0:02:18]} 13. gxf4 {[%clk 0:02:08]}  Rc8 {[%clk 0:02:19]} 14. e3 {[%clk 0:02:05]}  h6 {[%clk 0:02:13]} 15. Ne5 {[%clk 0:01:51]}  g5 {[%clk 0:02:08]} 16. fxg5 {[%clk 0:01:46]}  Nxe5 {[%clk 0:02:04]} 17. dxe5 {[%clk 0:01:45]}  hxg5 {[%clk 0:02:00]} 18. f3 {[%clk 0:01:31]}  Nxc3 {[%clk 0:01:59]} 19. Qxc3 {[%clk 0:01:32]}  f4 {[%clk 0:01:57]} 20. Bh3 {[%clk 0:01:28]}  Qe7 {[%clk 0:01:56]} 21. exf4 {[%clk 0:01:15]}  Rxf4 {[%clk 0:01:57]} 22. Kh1 {[%clk 0:01:14]}  c5 {[%clk 0:01:55]} 23. cxd5 {[%clk 0:01:09]}  Bxd5 {[%clk 0:01:55]} 24. bxc5 {[%clk 0:01:06]}  Qxc5 {[%clk 0:01:54]} 25. Qd3 {[%clk 0:01:05]}  Qc2 {[%clk 0:01:52]} 26. Qxc2 {[%clk 0:00:41]}  Rxc2 {[%clk 0:01:53]} 27. Bg2 {[%clk 0:00:32]}  g4 {[%clk 0:01:52]} 28. Rg1 {[%clk 0:00:24]}  Rxf3 {[%clk 0:01:45]} 29. Rbd1 {[%clk 0:00:20]}  Rff2 {[%clk 0:01:19]} 30. Rxd5 {[%clk 0:00:08]}  exd5 {[%clk 0:01:18]} 31. Bxd5+ {[%clk 0:00:08]}  Kf8 {[%clk 0:01:18]} 32. Rxg4 {[%clk 0:00:08]}  Rf1+ {[%clk 0:01:12]} 33. Rg1 {[%clk 0:00:06]}  Rxg1+ {[%clk 0:01:12]} 34. Kxg1 {[%clk 0:00:07]}  Rc5 {[%clk 0:01:13]} 0-1


[Site "https://www.chess.com"]

[Event "Titled Tuesday Blitz October 5 2021"]
[White "Dolzhykova, Kateryna"]
[Black "Kovalev, Vladislav"]
[WhiteFideId "14113414"]
[BlackFideId "13504398"]
[WhiteElo "2213"]
[BlackElo "2573"]
[Result "0-1"]
[Round "01"]
[TimeControl "180+1"]
[Date "2021.10.05"]
[WhiteClock "0:00:04"]
[BlackClock "0:00:37"]

1. e4 {[%clk 0:01:41]}  e5 {[%clk 0:02:59]} 2. Nf3 {[%clk 0:01:41]}  Nc6 {[%clk 0:02:59]} 3. Bc4 {[%clk 0:01:40]}  Nf6 {[%clk 0:02:59]} 4. d4 {[%clk 0:01:39]}  exd4 {[%clk 0:02:58]} 5. c3 {[%clk 0:01:39]}  Nxe4 {[%clk 0:02:50]} 6. O-O {[%clk 0:01:39]}  d5 {[%clk 0:02:50]} 7. Bb5 {[%clk 0:01:37]}  Bc5 {[%clk 0:02:06]} 8. cxd4 {[%clk 0:01:30]}  Bd6 {[%clk 0:02:05]} 9. Nc3 {[%clk 0:01:23]}  Nxc3 {[%clk 0:02:03]} 10. bxc3 {[%clk 0:01:24]}  O-O {[%clk 0:02:03]} 11. Bxc6 {[%clk 0:01:23]}  bxc6 {[%clk 0:02:04]} 12. h3 {[%clk 0:01:19]}  Bf5 {[%clk 0:01:56]} 13. Bg5 {[%clk 0:01:15]}  f6 {[%clk 0:01:54]} 14. Be3 {[%clk 0:01:15]}  Re8 {[%clk 0:01:50]} 15. Qa4 {[%clk 0:01:13]}  Qd7 {[%clk 0:01:47]} 16. Rfc1 {[%clk 0:01:02]}  Bxh3 {[%clk 0:01:23]} 17. gxh3 {[%clk 0:01:03]}  Qxh3 {[%clk 0:01:24]} 18. Qxc6 {[%clk 0:00:12]}  Qxf3 {[%clk 0:01:06]} 19. c4 {[%clk 0:00:02]}  Qg4+ {[%clk 0:00:48]} 20. Kf1 {[%clk 0:00:02]}  dxc4 {[%clk 0:00:41]} 21. Qxc4+ {[%clk 0:00:03]}  Kh8 {[%clk 0:00:40]} 22. d5 {[%clk 0:00:04]}  Re4 {[%clk 0:00:37]} 0-1


[Site "https://www.chess.com"]